bitfinex/quotes_SOLUSD_20250625
["timestamp","ask_amount","ask_price","bid_price","bid_amount"]
[1750831232663,9.17223528,145.6,145.58,10.4264724]
[1750831235784,9.17223528,145.6,145.58,3.55746885]
[1750831236389,9.17223528,145.6,145.57,6.86944898]
[1750831236586,9.17223528,145.6,145.58,3.55746885]
[1750831237679,9.17223528,145.6,145.58,10.42651828]
[1750831238886,9.17223528,145.6,145.56,6.87001923]
[1750831239091,9.17223528,145.6,145.57,3.55746885]
[1750831242090,9.17223528,145.6,145.56,6.87001923]
[1750831242291,9.17223528,145.6,145.57,3.55746885]
[1750831243068,9.17223528,145.6,145.59,3.55746885]
[1750831243467,9.17223528,145.6,145.59,29.55746885]
[1750831243784,5.12285115,145.66,145.59,49.73281771]
[1750831243976,5.12285115,145.67,145.63,3.55746885]
[1750831244170,11.98775994,145.67,145.63,3.55746885]
[1750831244570,15.54522879,145.67,145.61,6.86738383]
[1750831244772,10.42237764,145.67,145.62,3.55746885]
[1750831245071,15.54522879,145.67,145.62,3.55746885]
[1750831245272,10.42237764,145.67,145.62,3.55746885]
[1750831246890,10.42237764,145.67,145.62,10.42465119]
[1750831248781,3.55746885,145.67,145.63,3.55746885]
[1750831249095,8.68032,145.68,145.64,3.55746885]
[1750831249401,3.55746885,145.68,145.64,3.55746885]
[1750831249771,5.12285115,145.68,145.65,3.55746885]
[1750831249999,3.55746885,145.7,145.66,3.55746885]
[1750831250296,3.55746885,145.7,145.63,1.6639]
[1750831250297,8.67564774,145.7,145.65,3.55746885]
[1750831250502,3.55746885,145.69,145.65,3.55746885]
[1750831250983,3.55746885,145.69,145.65,10.42314267]
[1750831251183,15.53938224,145.7,145.65,10.42314267]
[1750831251394,10.42120335,145.7,145.65,10.42314267]
[1750831251593,3.55746885,145.7,145.65,10.42314267]
[1750831251894,8.67564774,145.7,145.65,10.42314267]
[1750831252289,3.55746885,145.7,145.65,10.42314267]
[1750831252792,3.55746885,145.7,145.66,10.4227645]
[1750831253192,17.03670222,145.71,145.67,3.55746885]
[1750831253499,11.91852333,145.71,145.67,3.55746885]
[1750831253695,11.91852333,145.71,145.68,3.55746885]
[1750831256300,11.91852333,145.71,145.68,5.55097992]
[1750831257494,11.91852333,145.71,145.7,5.55097992]
[1750831257810,5.55097992,145.74,145.68,1.5126]
[1750831258009,5.55097992,145.74,145.69,5.55097992]
[1750831258497,5.55097992,145.74,145.69,12.4145866]
[1750831259010,12.41261312,145.74,145.69,12.4145866]
[1750831260803,12.41261312,145.74,145.65,50.58964886]
[1750831260804,5.55097992,145.71,145.65,31.94]
[1750831260987,5.55097992,145.7,145.65,5.94]
[1750831261186,5.55097992,145.7,145.66,5.55097992]
[1750831261696,26.0,145.71,145.65,5.94]
[1750831261697,5.55097992,145.68,145.65,5.94]
[1750831262093,5.55097992,145.68,145.64,6.86596081]
[1750831262427,5.55097992,145.69,145.64,12.41694073]
[1750831262904,5.55097992,145.69,145.65,5.55097992]
[1750831263292,5.55097992,145.69,145.64,6.86596081]
[1750831263492,5.55097992,145.69,145.65,5.55097992]
[1750831264203,5.55097992,145.69,145.64,6.86596081]
[1750831264501,5.55097992,145.69,145.65,5.55097992]
[1750831265016,5.55097992,145.69,145.65,12.41633232]
[1750831265198,5.55097992,145.7,145.65,12.41633232]
[1750831265511,31.55097992,145.71,145.66,5.55097992]
[1750831266805,31.55097992,145.71,145.67,5.55097992]
[1750831267105,5.55097992,145.72,145.68,5.55097992]
[1750831267296,6.0361,145.73,145.67,6.86439217]
[1750831267297,5.55097992,145.73,145.69,5.55097992]
[1750831267498,5.55097992,145.73,145.67,6.86439217]
[1750831267815,5.55097992,145.73,145.69,5.55097992]
[1750831268710,12.41303561,145.73,145.69,5.55097992]
[1750831269308,5.55097992,145.72,145.67,12.41537209]
[1750831269509,5.55097992,145.71,145.66,8.48851976]
[1750831269717,5.55097992,145.7,145.66,12.41609968]
[1750831270906,5.55097992,145.7,145.65,12.41656723]
[1750831271411,12.41458849,145.7,145.65,12.41656723]
[1750831273316,12.41458849,145.7,145.66,5.55097992]
[1750831273506,6.86314933,145.71,145.67,5.55097992]
[1750831273706,12.41412925,145.71,145.67,5.55097992]
[1750831273911,6.86314933,145.71,145.67,5.55097992]
[1750831274101,12.41412925,145.71,145.67,5.55097992]
[1750831275712,33.45097992,145.72,145.68,5.55097992]
[1750831275892,27.9,145.72,145.68,5.55097992]
[1750831276287,34.76247916,145.72,145.68,5.55097992]
[1750831276702,40.31345908,145.72,145.68,5.55097992]
[1750831277118,153.06173308,145.74,145.69,5.55097992]
[1750831277451,6.86173308,145.74,145.7,5.55097992]
[1750831277918,48.14514886,145.76,145.72,5.55097992]
[1750831277919,6.86072533,145.76,145.72,5.55097992]
[1750831278408,23.85284127,145.77,145.72,5.55097992]
[1750831278618,12.41178041,145.76,145.71,5.55097992]
[1750831278791,6.86080049,145.76,145.71,5.55097992]
[1750831278990,5.55097992,145.75,145.71,5.55097992]
[1750831279616,12.4120626,145.75,145.71,5.55097992]
[1750831279814,5.55097992,145.75,145.71,12.41381392]
[1750831280703,11.9674049,145.76,145.71,12.41381392]
[1750831280704,11.9674049,145.76,145.72,5.55097992]
[1750831280705,10.65767105,145.76,145.72,5.55097992]
[1750831281015,17.51796027,145.77,145.72,5.55097992]
[1750831281192,5.55097992,145.77,145.73,5.55097992]
[1750831282008,11.96650783,145.78,145.73,12.41282105]
[1750831282208,17.51748775,145.78,145.73,12.41282105]
[1750831282706,17.51748775,145.78,145.73,5.55097992]
[1750831283108,17.51748775,145.78,145.73,12.41281651]
[1750831284534,11.96650783,145.78,145.73,12.41281651]
[1750831284734,17.51748775,145.78,145.73,12.41281651]
[1750831285610,17.51748775,145.78,145.7,24.02173944]
[1750831285812,17.51748775,145.78,145.73,5.55097992]
[1750831287014,5.55097992,145.77,145.73,5.55097992]
[1750831288324,5.55097992,145.77,145.71,6.8627624]
[1750831288534,5.55097992,145.77,145.72,5.55097992]
[1750831288817,5.55097992,145.75,145.71,5.55097992]
[1750831289026,12.41207474,145.75,145.71,5.55097992]
[1750831289799,12.41176696,145.76,145.71,12.41392094]
[1750831290004,12.41176696,145.76,145.72,5.55097992]
[1750831291900,12.41176696,145.76,145.71,6.86284024]
[1750831292105,5.55097992,145.75,145.7,6.86329853]
[1750831292313,5.55097992,145.75,145.71,5.55097992]
[1750831293128,12.41176696,145.76,145.71,5.55097992]
[1750831293424,17.51845809,145.76,145.71,5.55097992]
[1750831293617,12.41176696,145.76,145.71,5.55097992]
[1750831293825,17.51845809,145.76,145.71,5.55097992]
[1750831294002,12.41176696,145.76,145.71,5.55097992]
[1750831294204,5.55097992,145.75,145.71,5.55097992]
[1750831294604,12.41232564,145.75,145.71,5.55097992]
[1750831295412,6.86134572,145.75,145.7,6.86327264]
[1750831295611,12.41232564,145.75,145.71,5.55097992]
[1750831296020,17.51901677,145.75,145.71,5.55097992]
[1750831296326,12.41232564,145.75,145.71,5.55097992]
[1750831296821,17.51901677,145.75,145.71,5.55097992]
[1750831297029,6.86134572,145.75,145.71,5.55097992]
[1750831297332,12.41232564,145.75,145.71,5.55097992]
[1750831297536,17.51901677,145.75,145.71,5.55097992]
[1750831297707,12.41232564,145.75,145.71,5.55097992]
[1750831297908,5.55097992,145.74,145.7,5.55097992]
[1750831298107,10.65767105,145.74,145.7,5.55097992]
[1750831298709,5.10669113,145.74,145.7,5.55097992]
[1750831299036,5.55097992,145.73,145.68,5.55097992]
[1750831299234,5.10669113,145.72,145.68,5.55097992]
[1750831300929,11.96930957,145.72,145.68,5.55097992]
[1750831301131,17.52028949,145.72,145.68,5.55097992]
[1750831301334,12.41359836,145.72,145.67,12.41562014]
[1750831301834,17.52028949,145.72,145.67,12.41562014]
[1750831302034,12.41359836,145.72,145.67,12.41562014]
[1750831302410,17.52028949,145.72,145.67,12.41562014]
[1750831302612,5.55097992,145.72,145.68,12.4151813]
[1750831302815,5.10669113,145.72,145.68,12.4151813]
[1750831303117,5.10669113,145.74,145.7,5.55097992]
[1750831304406,5.10669113,145.74,145.71,5.55097992]
[1750831304721,5.10669113,145.74,145.72,5.55097992]
[1750831304921,5.10669113,145.75,145.72,5.55097992]
[1750831306111,11.96780109,145.75,145.71,5.55097992]
[1750831306340,5.10669113,145.75,145.7,6.86321431]
[1750831306530,5.10669113,145.76,145.74,5.55097992]
[1750831306730,5.10669113,145.78,145.75,5.55097992]
[1750831306945,5.10669113,145.77,145.75,12.41197829]
[1750831307121,5.10669113,145.79,145.75,12.41197829]
[1750831307327,5.10669113,145.78,145.75,12.41197829]
[1750831307635,5.10669113,145.79,145.75,12.41197829]
[1750831308140,5.10669113,145.79,145.76,5.55097992]
[1750831308443,6.85918839,145.79,145.75,12.41197829]
[1750831308941,6.85918839,145.79,145.75,5.55097992]
[1750831309517,12.41016831,145.79,145.74,6.86136573]
[1750831309838,12.41016831,145.79,145.75,5.55097992]
[1750831311335,11.33249113,145.8,145.75,12.41191426]
[1750831311634,11.77677992,145.8,145.75,12.41191426]
[1750831311935,16.88347105,145.8,145.75,12.41191426]
[1750831312136,11.77677992,145.8,145.75,12.41191426]
[1750831312325,5.55097992,145.79,145.75,12.41191426]
[1750831313313,5.55097992,145.79,145.75,6.86093434]
[1750831313521,5.10669113,145.81,145.76,5.55097992]
[1750831313723,5.55097992,145.81,145.76,5.55097992]
[1750831314536,6.65789113,145.82,145.76,5.55097992]
[1750831314717,5.55097992,145.81,145.77,6.86012211]
[1750831315524,10.65767105,145.82,145.78,5.55097992]
[1750831315723,31.10669113,145.83,145.79,5.55097992]
[1750831315927,5.55097992,145.84,145.8,5.55097992]
[1750831316239,5.10669113,145.85,145.81,5.55097992]
[1750831316447,10.65767105,145.86,145.81,5.55097992]
[1750831316738,5.55097992,145.82,145.75,24.01366262]
[1750831316920,5.55097992,145.79,145.75,24.01366262]
[1750831317234,5.55097992,145.79,145.75,6.86106346]
[1750831317538,5.55097992,145.79,145.75,12.41204338]
[1750831317732,5.55097992,145.79,145.75,6.86106346]
[1750831319341,5.10669113,145.81,145.75,6.86106346]
[1750831319522,5.55097992,145.79,145.75,6.86106346]
[1750831320542,5.55097992,145.79,145.75,12.41204338]
[1750831321448,5.55097992,145.79,145.75,6.86106346]
[1750831322846,5.55097992,145.78,145.75,6.86106346]
[1750831325849,5.55097992,145.79,145.75,6.86106346]
[1750831326235,5.55097992,145.79,145.75,12.41204338]
[1750831327652,5.55097992,145.77,145.75,6.86106346]
[1750831327824,11.96526028,145.81,145.75,6.86106346]
[1750831328023,61.9043,145.83,145.75,6.86106346]
[1750831328024,5.55097992,145.78,145.75,6.86106346]
[1750831329036,11.96461577,145.82,145.75,6.86106346]
[1750831329237,5.55097992,145.78,145.75,6.86106346]
[1750831329850,5.55097992,145.77,145.75,6.86106346]
[1750831331051,5.55097992,145.77,145.74,6.86153423]
[1750831331854,6.85878195,145.8,145.74,6.86153423]
[1750831331855,5.55097992,145.78,145.74,6.86153423]
[1750831332353,5.55097992,145.78,145.74,5.55097992]
[1750831332558,6.85878195,145.8,145.74,5.55097992]
[1750831332738,5.10669113,145.82,145.75,5.55097992]
[1750831332739,5.55097992,145.79,145.75,5.55097992]
[1750831332938,5.55097992,145.79,145.73,24.01684779]
[1750831332939,5.55097992,145.79,145.74,5.55097992]
[1750831333936,5.55097992,145.8,145.76,5.55097992]
[1750831334134,5.55097992,145.79,145.75,12.41204338]
[1750831335435,5.55097992,145.79,145.75,6.86106346]
[1750831339345,5.55097992,145.77,145.72,37.47097992]
[1750831339556,5.55097992,145.76,145.72,37.47097992]
[1750831339748,5.55097992,145.76,145.72,31.92]
[1750831340469,5.55097992,145.76,145.73,6.86200507]
[1750831341857,6.85966751,145.78,145.73,6.86200507]
[1750831342060,5.55097992,145.74,145.69,6.86388907]
[1750831342259,5.55097992,145.71,145.68,6.86416507]
[1750831342544,5.55097992,145.7,145.67,6.86474982]
[1750831343357,5.55097992,145.71,145.67,6.86474982]
[1750831343566,5.55097992,145.71,145.67,12.41572974]
[1750831343766,5.55097992,145.71,145.67,6.86474982]
[1750831343968,32.86090418,145.76,145.69,5.55097992]
[1750831344170,5.55097992,145.75,145.7,5.55097992]
[1750831344467,5.55097992,145.75,145.71,5.55097992]
[1750831345367,5.55097992,145.75,145.7,5.55097992]
[1750831346357,5.55097992,145.75,145.71,6.86294694]
[1750831346758,5.55097992,145.74,145.71,6.86294694]
[1750831347347,5.55097992,145.74,145.7,5.55097992]
[1750831347348,5.55097992,145.74,145.69,5.55097992]
[1750831347543,5.55097992,145.73,145.69,5.55097992]
[1750831348353,5.55097992,145.73,145.69,12.41447098]
[1750831348572,11.97819174,145.75,145.69,12.41447098]
[1750831348573,5.55097992,145.74,145.69,12.41447098]
[1750831348760,5.55097992,145.74,145.7,5.55097992]
[1750831349952,5.55097992,145.74,145.69,12.41447098]
[1750831350574,5.55097992,145.73,145.69,6.86349106]
[1750831351354,5.55097992,145.73,145.69,12.41447098]
[1750831351954,5.55097992,145.73,145.69,5.55097992]
[1750831352154,5.55097992,145.73,145.67,24.02691013]
[1750831352371,5.55097992,145.73,145.69,5.55097992]
[1750831352575,5.55097992,145.73,145.68,5.55097992]
[1750831352954,11.9780949,145.75,145.68,5.55097992]
[1750831353157,5.55097992,145.71,145.67,12.41581138]
[1750831353370,5.55097992,145.71,145.67,6.86483146]
[1750831353573,5.55097992,145.69,145.65,26.0]
[1750831353956,5.55097992,145.69,145.65,32.86559423]
[1750831354772,5.55097992,145.7,145.65,38.41657415]
[1750831354971,5.55097992,145.7,145.65,32.86559423]
[1750831355158,5.55097992,145.69,145.65,38.41657415]
[1750831355358,6.86200507,145.73,145.65,38.41657415]
[1750831355559,5.55097992,145.7,145.66,5.55097992]
[1750831355779,5.55097992,145.7,145.67,6.86483146]
[1750831357877,5.55097992,145.7,145.66,12.41628267]
[1750831359575,5.55097992,145.7,145.66,6.86530275]
[1750831359786,5.55097992,145.69,145.65,32.86558087]
[1750831360003,5.55097992,145.68,145.64,8.39595801]
[1750831360179,5.55097992,145.67,145.64,1.5298]
[1750831360489,5.55097992,145.66,145.64,1.5298]
[1750831360796,5.55097992,145.66,145.63,6.8665819]
[1750831364785,5.55097992,145.66,145.62,12.41798489]
[1750831365391,5.55097992,145.65,145.61,12.80754012]
[1750831365593,5.55097992,145.64,145.61,6.86754012]
[1750831365794,5.55097992,145.63,145.6,26.0]
[1750831366673,5.55097992,145.62,145.59,6.86831035]
[1750831367066,5.55097992,145.62,145.57,5.55097992]
[1750831367259,27.94,145.65,145.56,13.02757992]
[1750831367260,5.55097992,145.6,145.56,13.02757992]
[1750831368083,5.55097992,145.6,145.56,19.8974152]
[1750831369188,5.55097992,145.61,145.57,5.55097992]
[1750831369494,5.55097992,145.62,145.58,5.55097992]
[1750831369702,5.55097992,145.63,145.58,5.55097992]
[1750831369998,5.55097992,145.62,145.58,5.55097992]
[1750831370294,5.55097992,145.64,145.59,12.41912259]
[1750831370770,5.55097992,145.63,145.59,6.86814267]
[1750831371090,5.55097992,145.62,145.58,12.41987235]
[1750831371313,5.55097992,145.61,145.57,5.55097992]
[1750831372183,5.55097992,145.61,145.57,12.4203779]
[1750831372399,5.55097992,145.62,145.57,6.86939798]
[1750831372603,6.8668694,145.63,145.58,5.55097992]
[1750831372800,5.55097992,145.62,145.57,6.86939798]
[1750831372976,5.55097992,145.62,145.58,5.55097992]
[1750831373702,5.55097992,145.62,145.58,12.41977203]
[1750831373996,5.55097992,145.66,145.61,5.55097992]
[1750831374176,5.55097992,145.66,145.62,5.55097992]
[1750831375012,5.55097992,145.66,145.61,5.55097992]
[1750831375185,5.55097992,145.66,145.61,12.41826488]
[1750831378882,5.55097992,145.66,145.62,5.55097992]
[1750831379999,5.55097992,145.66,145.62,12.41800151]
[1750831382698,5.55097992,145.66,145.62,5.55097992]
[1750831383298,5.55097992,145.66,145.59,24.04011264]
[1750831383510,5.55097992,145.66,145.62,5.55097992]
[1750831384298,5.55097992,145.66,145.61,6.86720297]
[1750831384598,5.55097992,145.66,145.62,5.55097992]
[1750831384803,5.55097992,145.63,145.56,7.4766]
[1750831385001,5.55097992,145.63,145.55,5.55097992]
[1750831385002,5.55097992,145.6,145.55,5.55097992]
[1750831386196,5.55097992,145.6,145.56,6.87001923]
[1750831386581,5.55097992,145.6,145.56,12.42099915]
[1750831386995,5.55097992,145.59,145.56,6.87001923]
[1750831387198,5.55097992,145.59,145.55,6.87030657]
[1750831387412,5.55097992,145.58,145.55,6.87030657]
[1750831388011,5.55097992,145.59,145.55,12.42128649]
[1750831388186,5.55097992,145.59,145.54,6.8709633]
[1750831388503,5.55097992,145.58,145.54,6.8709633]
[1750831389003,6.5856,145.62,145.54,6.8709633]
[1750831389004,5.55097992,145.57,145.54,6.8709633]
[1750831389385,5.55097992,145.57,145.53,38.42225761]
[1750831389609,5.55097992,145.56,145.53,32.87127769]
[1750831390106,5.55097992,145.56,145.53,6.87127769]
[1750831390303,5.55097992,145.56,145.5,17.1821148]
[1750831390304,5.55097992,145.54,145.5,6.87272412]
[1750831390503,5.55097992,145.53,145.49,12.42426308]
[1750831393696,5.55097992,145.52,145.48,6.87370268]
[1750831394017,5.55097992,145.51,145.47,12.42507579]
[1750831394800,5.55097992,145.52,145.47,12.42507579]
[1750831396910,6.87129998,145.54,145.47,12.42507579]
[1750831397114,5.55097992,145.52,145.48,5.55097992]
[1750831397305,5.55097992,145.52,145.49,6.87332462]
[1750831397814,6.87129998,145.54,145.49,6.87332462]
[1750831398013,5.55097992,145.52,145.49,6.87332462]
[1750831398204,5.55097992,145.52,145.48,12.4245946]
[1750831399196,6.87049124,145.55,145.48,12.4245946]
[1750831399401,5.55097992,145.52,145.48,12.4245946]
[1750831399591,32.87049124,145.55,145.48,12.4245946]
[1750831399790,5.55097992,145.51,145.45,1.6649]
[1750831400092,50.04671934,145.55,145.46,5.55097992]
[1750831400093,5.55097992,145.5,145.46,5.55097992]
[1750831400493,5.55097992,145.51,145.46,5.55097992]
[1750831400722,5.55097992,145.51,145.47,5.55097992]
[1750831400914,5.55097992,145.51,145.47,12.42505471]
[1750831401208,5.55097992,145.51,145.46,5.55097992]
[1750831401410,43.1762281,145.55,145.45,12.42619477]
[1750831401411,5.55097992,145.5,145.45,12.42619477]
[1750831402290,5.55097992,145.48,145.43,6.87600367]
[1750831402490,35.629,145.51,145.43,12.42698359]
[1750831402491,5.55097992,145.47,145.43,12.42698359]
[1750831402917,6.87285223,145.5,145.43,6.87600367]
[1750831403216,6.87285223,145.5,145.44,5.55097992]
[1750831403217,5.55097992,145.48,145.44,5.55097992]
[1750831403591,5.55097992,145.48,145.43,6.87600367]
[1750831403791,5.55097992,145.48,145.44,5.55097992]
[1750831404318,5.55097992,145.49,145.44,12.42645733]
[1750831404809,5.55097992,145.49,145.44,6.87547741]
[1750831404991,5.55097992,145.49,145.44,12.42645733]
[1750831405392,5.55097992,145.49,145.45,5.55097992]
[1750831405709,5.55097992,145.49,145.44,6.87547741]
[1750831405710,5.55097992,145.52,145.47,5.55097992]
[1750831406014,5.55097992,145.51,145.47,5.55097992]
[1750831407108,5.55097992,145.51,145.46,5.55097992]
[1750831407318,5.55097992,145.5,145.45,5.55097992]
[1750831407702,5.55097992,145.5,145.44,24.06469633]
[1750831407908,5.55097992,145.5,145.46,5.55097992]
[1750831409014,5.55097992,145.5,145.47,6.8742696]
[1750831409189,5.55097992,145.5,145.46,12.42555511]
[1750831409718,5.55097992,145.5,145.46,6.87457519]
[1750831410819,54.02,145.53,145.42,5.98]
[1750831410820,5.55097992,145.48,145.42,5.98]
[1750831411022,5.55097992,145.47,145.43,6.87616035]
[1750831411318,5.55097992,145.46,145.43,6.87616035]
[1750831412624,5.55097992,145.46,145.42,6.87647787]
[1750831412833,26.0,145.48,145.41,12.42791147]
[1750831413117,7.20207992,145.5,145.45,5.55097992]
[1750831413302,12.42399059,145.5,145.45,5.55097992]
[1750831413501,5.55097992,145.46,145.42,5.55097992]
[1750831413709,5.55097992,145.46,145.41,12.42791147]
[1750831414611,5.55097992,145.45,145.41,6.87693155]
[1750831414802,5.55097992,145.45,145.4,5.55097992]
[1750831414996,5.55097992,145.45,145.41,5.55097992]
[1750831415200,34.95446486,145.47,145.41,5.55097992]
[1750831415413,5.55097992,145.46,145.41,5.55097992]
[1750831416225,5.55097992,145.46,145.41,12.42766114]
[1750831416927,5.55097992,145.46,145.41,6.87668122]
[1750831417126,5.55097992,145.46,145.42,5.55097992]
[1750831418525,5.55097992,145.46,145.42,12.42739632]
[1750831420935,5.55097992,145.46,145.41,5.55097992]
[1750831423226,5.55097992,145.46,145.42,6.8766332]
[1750831431124,34.95430114,145.47,145.42,6.8766332]
[1750831431325,5.55097992,145.46,145.42,6.8766332]
[1750831434336,5.55097992,145.46,145.41,5.55097992]
[1750831434337,5.55097992,145.45,145.41,6.87706239]
[1750831434514,5.55097992,145.44,145.4,6.87739108]
[1750831435330,5.55097992,145.45,145.4,12.428371]
[1750831436741,12.42625252,145.45,145.4,12.428371]
[1750831436922,5.55097992,145.44,145.4,12.428371]
[1750831437322,5.55097992,145.43,145.37,7.5299]
[1750831437625,5.55097992,145.42,145.38,5.55097992]
[1750831438218,5.55097992,145.42,145.38,12.42933946]
[1750831439529,5.55097992,145.43,145.38,12.42933946]
[1750831439920,6.87521485,145.45,145.39,5.55097992]
[1750831440115,5.55097992,145.43,145.39,5.55097992]
[1750831440528,5.55097992,145.42,145.38,12.42933946]
[1750831440950,5.55097992,145.41,145.38,6.87835954]
[1750831441319,5.55097992,145.4,145.37,8.40874491]
[1750831441732,5.55097992,145.41,145.37,13.95972483]
[1750831441934,5.12157725,145.45,145.4,5.55097992]
[1750831442139,28.02,145.48,145.44,5.55097992]
[1750831442422,33.57097992,145.48,145.44,5.55097992]
[1750831442631,38.69255717,145.48,145.43,5.55097992]
[1750831442838,5.55097992,145.47,145.41,6.87710611]
[1750831443142,5.12157725,145.48,145.43,5.55097992]
[1750831443442,6.5968,145.5,145.45,5.55097992]
[1750831443443,10.67255717,145.49,145.45,5.55097992]
[1750831443641,5.55097992,145.49,145.45,5.55097992]
[1750831444016,10.67255717,145.49,145.45,5.55097992]
[1750831444745,5.55097992,145.48,145.44,5.55097992]
[1750831444933,5.55097992,145.48,145.43,12.42714027]
[1750831445116,5.55097992,145.47,145.43,6.87616035]
[1750831445323,5.55097992,145.47,145.43,12.42714027]
[1750831447036,5.55097992,145.48,145.44,12.42661495]
[1750831447331,17.54637918,145.48,145.43,12.42696047]
[1750831447546,5.55097992,145.46,145.42,7.21677992]
[1750831448347,5.55097992,145.45,145.42,1.6658]
[1750831448550,5.55097992,145.45,145.41,6.87704091]
[1750831450747,12.42624043,145.45,145.4,6.87738359]
[1750831450951,5.55097992,145.45,145.4,12.42836351]
[1750831451243,5.55097992,145.44,145.4,12.42836351]
[1750831451452,5.55097992,145.45,145.41,5.55097992]
[1750831452441,5.55097992,145.45,145.41,12.42804099]
[1750831452853,5.55097992,145.45,145.41,6.87706107]
[1750831454037,12.00472755,145.47,145.41,6.87706107]
[1750831454254,5.55097992,145.45,145.41,6.87706107]
[1750831454955,10.6812936,145.45,145.41,6.87706107]
[1750831455452,5.13031368,145.45,145.41,6.87706107]
[1750831455748,5.55097992,145.45,145.41,6.87706107]
[1750831457262,10.68689146,145.45,145.41,6.87706107]
[1750831457465,5.55097992,145.45,145.41,6.87706107]
[1750831457627,10.68677034,145.45,145.41,6.87706107]
[1750831458555,5.55097992,145.43,145.4,6.877431]
[1750831462048,5.13460053,145.44,145.4,12.42841092]
[1750831462248,5.55097992,145.44,145.4,12.42841092]
[1750831463531,59.59097992,145.45,145.4,12.42841092]
[1750831464958,59.59097992,145.45,145.4,6.877431]
[1750831465137,5.55097992,145.43,145.4,6.877431]
[1750831465459,5.55097992,145.43,145.39,12.42887956]
[1750831467355,5.55097992,145.44,145.4,5.55097992]
[1750831467657,5.55097992,145.44,145.39,12.42887956]
[1750831469861,60.91538499,145.45,145.42,5.55097992]
[1750831469862,54.04,145.45,145.42,5.55097992]
[1750831470048,6.87379708,145.48,145.42,5.55097992]
[1750831470358,10.68474642,145.47,145.42,5.55097992]
[1750831470535,10.68474642,145.46,145.42,5.55097992]
[1750831470737,5.55097992,145.46,145.43,6.87616035]
[1750831470936,5.55097992,145.46,145.42,12.42751036]
[1750831471740,12.00812903,145.47,145.42,12.42751036]
[1750831471945,5.55097992,145.47,145.42,12.42751036]
[1750831472741,26.0,145.48,145.45,5.55097992]
[1750831472941,40.42439993,145.49,145.44,12.42666748]
[1750831473143,12.42439993,145.49,145.44,6.87568756]
[1750831473354,5.55097992,145.48,145.44,12.42666748]
[1750831473546,5.55097992,145.48,145.44,6.87568756]
[1750831474338,12.0071874,145.49,145.44,6.87568756]
[1750831474543,5.55097992,145.48,145.44,6.87568756]
[1750831474754,5.55097992,145.47,145.43,1.5582]
[1750831475063,5.55097992,145.46,145.43,1.5582]
[1750831476644,5.55097992,145.46,145.43,8.43435668]
[1750831477458,6.87424281,145.48,145.43,8.43435668]
[1750831477459,5.55097992,145.48,145.43,13.9853366]
[1750831477666,5.55097992,145.46,145.43,1.5582]
[1750831479163,5.55097992,145.45,145.43,1.5582]
[1750831479752,6.87441222,145.47,145.43,1.5582]
[1750831480059,5.55097992,145.45,145.43,1.5582]
[1750831480963,5.55097992,145.45,145.4,12.428204]
[1750831485271,5.55097992,145.45,145.41,5.55097992]
[1750831485477,5.55097992,145.46,145.42,5.55097992]
[1750831486088,5.55097992,145.47,145.43,12.42714027]
[1750831486565,5.13119894,145.48,145.44,5.55097992]
[1750831486566,5.13350982,145.48,145.44,5.55097992]
[1750831487349,10.68448974,145.5,145.46,5.55097992]
[1750831487547,5.55097992,145.49,145.45,5.55097992]
[1750831487853,5.55097992,145.49,145.44,7.09247992]
[1750831488050,5.55097992,145.48,145.44,8.4170317]
[1750831489367,5.13345399,145.49,145.44,13.96801162]
[1750831489670,5.55097992,145.48,145.44,13.96801162]
[1750831491774,5.55097992,145.46,145.42,5.55097992]
[1750831492877,5.55097992,145.46,145.42,12.42736479]
[1750831497153,5.55097992,145.46,145.41,12.42808603]
[1750831498966,12.42574425,145.46,145.41,12.42808603]
[1750831499358,5.55097992,145.45,145.41,5.55097992]
[1750831500775,5.55097992,145.45,145.41,12.42801508]
[1750831501659,12.42625069,145.45,145.4,1.6632]
[1750831501963,5.55097992,145.44,145.4,1.6632]
[1750831502182,5.55097992,145.45,145.41,5.55097992]
[1750831502482,17.55772393,145.46,145.41,6.87683951]
[1750831502782,12.42589098,145.46,145.41,12.42781943]
[1750831502989,5.55097992,145.45,145.41,6.87683951]
[1750831503197,5.55097992,145.45,145.41,5.55097992]
[1750831504376,5.55097992,145.45,145.41,12.42780558]
[1750831504865,12.42579784,145.46,145.41,12.42780558]
[1750831505063,10.68281287,145.46,145.41,12.42780558]
[1750831505288,5.13183295,145.46,145.41,12.42780558]
[1750831505477,10.68281287,145.46,145.41,12.42780558]
[1750831506088,17.55764736,145.46,145.41,12.42780558]
[1750831506266,12.42581441,145.46,145.41,12.42780558]
[1750831506466,5.55097992,145.45,145.41,12.42780558]
[1750831506663,5.55097992,145.45,145.41,6.87682566]
[1750831506966,5.55097992,145.43,145.4,1.6632]
[1750831507172,5.55097992,145.43,145.37,26.0]
[1750831507173,5.55097992,145.42,145.38,6.87822924]
[1750831507791,5.55097992,145.43,145.38,12.42920916]
[1750831508471,5.55097992,145.44,145.39,5.55097992]
[1750831509690,5.55097992,145.44,145.38,6.87822924]
[1750831509691,10.68281287,145.45,145.4,5.55097992]
[1750831509862,5.55097992,145.45,145.4,5.55097992]
[1750831510165,5.55097992,145.44,145.4,5.55097992]
[1750831510367,59.53097992,145.46,145.41,12.42808603]